fUSD/lending_fUSD_20251117
["ID","MTS","AMOUNT","RATE_DAILY","PERIOD"]
[394178736,1763356235439,-300.0,0.00021746,2]
[394178737,1763356235448,-300.0,0.00021746,2]
[394178738,1763356235459,-300.0,0.00021748,2]
[394178739,1763356235469,-171.35,0.00021749,2]
[394178740,1763356235479,-300.0,0.00021753,2]
[394178741,1763356235488,-1000.0,0.00021758,2]
[394178742,1763356235498,-1000.0,0.00021758,2]
[394178743,1763356235508,-519.40506506,0.00021758,2]
[394178744,1763356235518,-500.0,0.00021758,2]
[394178745,1763356235527,-246.62811958,0.00021758,2]
[394178746,1763356235537,-500.0,0.00021758,2]
[394178747,1763356235547,-500.0,0.00021758,2]
[394178748,1763356235557,-500.0,0.00021758,2]
[394178749,1763356235566,-500.0,0.00021758,2]
[394178750,1763356235576,-500.0,0.00021758,2]
[394178751,1763356235586,-150.0,0.00021759,2]
[394178752,1763356235597,-300.0,0.00021759,2]
[394178753,1763356235607,-300.0,0.00021761,2]
[394178754,1763356235618,-300.0,0.00021761,2]
[394178755,1763356235630,-300.0,0.00021761,2]
[394178756,1763356235640,-150.0,0.00021762,2]
[394178757,1763356235650,-150.0,0.00021763,2]
[394178758,1763356235661,-150.0,0.00021763,2]
[394178759,1763356235671,-150.0,0.00021765,2]
[394178760,1763356235681,-300.0,0.00021766,2]
[394178761,1763356235691,-300.0,0.0002177,2]
[394178762,1763356235702,-300.0,0.00021772,2]
[394178763,1763356235712,-150.0,0.00021773,2]
[394178764,1763356235721,-504.46060675,0.00021779,2]
[394178765,1763356235731,-150.0,0.00021779,2]
[394178766,1763356235740,-300.0,0.00021779,2]
[394178767,1763356235750,-300.0,0.00021781,2]
[394178768,1763356235761,-300.0,0.00021782,2]
[394178769,1763356235772,-300.0,0.00021787,2]
[394178770,1763356235782,-300.0,0.00021788,2]
[394178771,1763356235793,-300.0,0.00021789,2]
[394178772,1763356235803,-300.0,0.00021789,2]
[394178773,1763356235814,-300.0,0.00021789,2]
[394178774,1763356235825,-150.0,0.00021798,2]
[394178775,1763356235835,-300.0,0.00021798,2]
[394178776,1763356235845,-300.0,0.00021799,2]
[394178777,1763356235855,-172.0,0.000218,5]
[394178778,1763356235866,-161.0,0.000218,5]
[394178779,1763356235876,-300.0,0.000218,2]
[394178780,1763356235886,-300.0,0.00021801,2]
[394178781,1763356235895,-1000.0,0.00021802,2]
[394178782,1763356235904,-311.89108033,0.00021806,2]
[394178783,1763356235915,-300.0,0.00021807,2]
[394178784,1763356235925,-300.0,0.00021811,2]
[394178785,1763356235935,-300.0,0.00021813,2]
[394178786,1763356235945,-300.0,0.00021816,2]
[394178787,1763356235955,-300.0,0.00021816,2]
[394178788,1763356235972,-150.0,0.00021819,2]
[394178789,1763356235989,-150.0,0.00021826,2]
[394178790,1763356235999,-300.0,0.00021827,2]
[394178791,1763356236009,-300.0,0.00021831,2]
[394178792,1763356236019,-300.0,0.00021832,2]
[394178793,1763356236029,-1000.0,0.00021834,2]
[394178794,1763356236039,-166.66,0.00021834,2]
[394178795,1763356236050,-300.0,0.00021835,2]
[394178796,1763356236061,-300.0,0.00021839,2]
[394178797,1763356236071,-300.0,0.00021844,2]
[394178798,1763356236083,-300.0,0.00021848,2]
[394178799,1763356236094,-150.0,0.00021849,2]
[394178800,1763356236103,-150.0,0.0002185,2]
[394178801,1763356236115,-300.0,0.0002185,2]
[394178802,1763356236126,-300.0,0.0002185,2]
[394178803,1763356236136,-300.0,0.00021851,2]
[394178804,1763356236148,-150.0,0.00021855,2]
[394178805,1763356236158,-300.0,0.00021855,2]
[394178806,1763356236168,-300.0,0.00021857,2]
[394178807,1763356236178,-479.1746172,0.00021863,2]
[394178808,1763356236188,-150.0,0.00021865,2]
[394178809,1763356236198,-300.0,0.00021865,2]
[394178810,1763356236208,-150.0,0.00021866,2]
[394178811,1763356236219,-300.0,0.00021869,2]
[394178812,1763356236229,-300.0,0.00021869,2]
[394178813,1763356236239,-300.0,0.00021879,2]
[394178814,1763356236250,-300.0,0.00021882,2]
[394178815,1763356236259,-300.0,0.00021886,2]
[394178816,1763356236272,-300.0,0.00021887,2]
[394178817,1763356236282,-300.0,0.0002189,2]
[394178818,1763356236293,-150.0,0.00021893,2]
[394178819,1763356236305,-300.0,0.00021895,2]
[394178820,1763356236315,-300.0,0.00021895,2]
[394178821,1763356236327,-300.0,0.00021895,2]
[394178822,1763356236336,-309.29654756,0.00021896,2]
[394178823,1763356236349,-150.0,0.00021897,2]
[394178824,1763356236359,-300.0,0.00021898,2]
[394178825,1763356236368,-300.0,0.00021899,2]
[394178826,1763356236379,-300.0,0.00021902,2]
[394178827,1763356236388,-300.0,0.00021902,2]
[394178828,1763356236398,-300.0,0.00021902,2]
[394178829,1763356236408,-300.0,0.00021903,2]
[394178830,1763356236418,-1000.0,0.00021905,2]
[394178831,1763356236428,-300.0,0.00021906,2]
[394178832,1763356236438,-150.0,0.00021907,2]
[394178833,1763356236447,-300.0,0.00021908,2]
[394178834,1763356236457,-300.0,0.00021909,2]
[394178835,1763356236467,-300.0,0.00021913,2]
[394178836,1763356236477,-5000.0,0.00021918,2]
[394178837,1763356236486,-152.0,0.00021918,2]
[394178838,1763356236496,-152.0,0.00021918,2]
[394178839,1763356236505,-152.0,0.00021918,2]
[394178840,1763356236515,-152.0,0.00021918,2]
[394178841,1763356236524,-162.0,0.00021918,2]
[394178842,1763356236533,-162.0,0.00021918,2]
[394178843,1763356236548,-152.0,0.00021918,2]
[394178844,1763356236558,-162.0,0.00021918,2]
[394178845,1763356236568,-152.0,0.00021918,2]
[394178846,1763356236578,-162.0,0.00021918,2]
[394178847,1763356236587,-152.0,0.00021918,2]
[394178848,1763356236597,-154.91008961,0.00021918,2]
[394178849,1763356236607,-152.0,0.00021918,2]
[394178850,1763356236618,-152.0,0.00021918,2]
[394178851,1763356236633,-152.0,0.00021918,2]
[394178852,1763356236644,-152.0,0.00021918,2]
[394178853,1763356236654,-152.0,0.00021918,2]
[394178854,1763356236666,-152.0,0.00021918,2]
[394178855,1763356236676,-152.0,0.00021918,2]
[394178856,1763356236686,-152.0,0.00021918,2]
[394178857,1763356236696,-152.0,0.00021918,2]
[394178858,1763356236705,-152.0,0.00021918,2]
[394178859,1763356236715,-152.0,0.00021918,2]
[394178860,1763356236724,-152.0,0.00021918,2]
[394178861,1763356236734,-152.0,0.00021918,2]
[394178862,1763356236745,-249.21860766,0.00021918,2]
[394178863,1763356236755,-191.0,0.00022,2]
[394178864,1763356236765,-317.0,0.00022,2]
[394178865,1763356236776,-163.0,0.00022,2]
[394178866,1763356236786,-1296.10619,0.00022,2]
[394178867,1763356236796,-308.4,0.00022,2]
[394178868,1763356236807,-249.76,0.00022009,2]
[394178869,1763356236817,-238.27133015,0.0002211,2]
[394178870,1763356236827,-317.0,0.00022192,7]
[394178871,1763356236837,-355.08880302,0.00022235,2]
[394178872,1763356236847,-317.0,0.00022466,7]
[394178873,1763356236857,-630.17869963,0.00022499,2]
[394178874,1763356236867,-151.0,0.000225,2]
[394178875,1763356236877,-151.0,0.000225,2]
[394178876,1763356236886,-326.15419917,0.00022589,2]
[394178877,1763356236896,-500.0,0.00022589,2]
[394178878,1763356236906,-151.0,0.000227,2]
[394178879,1763356236919,-151.0,0.000227,2]
[394178880,1763356236929,-627.497574,0.000227,2]
[394178881,1763356236939,-627.497574,0.000227,2]
[394178882,1763356236947,-627.497574,0.000227,2]
[394178883,1763356236956,-627.497574,0.000227,2]
[394178884,1763356236965,-151.0,0.000227,2]
[394178885,1763356236974,-317.0,0.0002274,7]
[394178886,1763356236984,-151.0,0.000228,2]
[394178887,1763356236994,-151.0,0.000228,2]
[394178888,1763356237003,-151.0,0.000228,2]
[394178889,1763356237012,-151.0,0.000228,2]
[394178890,1763356237022,-151.0,0.000228,2]
[394178891,1763356237031,-151.0,0.000228,2]
[394178892,1763356237046,-151.0,0.000228,2]
[394178893,1763356237055,-1300.0,0.000229,8]
[394178894,1763356237064,-1000.0,0.00023,14]
[394178895,1763356237074,-151.0,0.00023,2]
[394178896,1763356237083,-151.0,0.00023,2]
[394178897,1763356237093,-151.0,0.00023,2]
[394178898,1763356237106,-151.0,0.00023,2]
[394178899,1763356237115,-151.0,0.00023,2]
[394178900,1763356237124,-151.0,0.00023,2]
[394178901,1763356237134,-152.76877,0.00023,2]
[394178902,1763356237145,-317.0,0.00023014,7]
[394178903,1763356237154,-163.0,0.00023014,7]
[394178904,1763356237166,-317.0,0.00023014,7]
[394178905,1763356237176,-206.6,0.0002309,2]
[394178906,1763356237186,-17142.97881913,0.00023109,2]
[394178907,1763356237195,-246.82790222,0.00023109,2]
[394178908,1763356237204,-151.0,0.0002323,2]
[394178909,1763356237214,-320.74051982,0.00023265,2]
[394178910,1763356237224,-151.0,0.000233,7]
[394178911,1763356237233,-166.51,0.00023301,2]
[394178912,1763356237241,-285.59,0.00023319,2]
[394178914,1763356237250,-812.723508,0.00023454,7]
[394178915,1763356237259,-812.723508,0.00023454,7]
[394178916,1763356237268,-812.723508,0.00023454,7]
[394178917,1763356237279,-812.723508,0.00023454,7]
[394178918,1763356237291,-151.0,0.00023454,7]
[394178919,1763356237305,-151.0,0.00023454,7]
[394178920,1763356237315,-150.0,0.00023454,2]
[394178921,1763356237325,-150.0,0.00023454,2]
[394178922,1763356237334,-1318.0,0.00023454,2]
[394178923,1763356237349,-575.0,0.00023454,2]
[394178924,1763356237368,-608.0,0.00023454,2]
[394178925,1763356237379,-3431.0,0.00023454,2]
[394178926,1763356237388,-1599.0,0.00023454,2]
[394178928,1763356237398,-821.0,0.00023454,2]
[394178929,1763356237408,-1275.0,0.00023454,2]
[394178932,1763356237419,-793.0,0.00023454,2]
[394178933,1763356237428,-1191.0,0.00023454,2]
[394178934,1763356237438,-907.0,0.00023454,2]
[394178935,1763356237448,-705.0,0.00023454,2]
[394178936,1763356237459,-560.0,0.00023454,2]
[394178937,1763356237470,-1604.0,0.00023454,2]
[394178938,1763356237482,-166.51,0.00023589,2]
[394178939,1763356237493,-151.0,0.000236,7]
[394178940,1763356237504,-151.0,0.000236,7]
[394178941,1763356237519,-151.0,0.000237,7]
[394178942,1763356237529,-154.926392,0.000237,7]
[394178943,1763356237539,-162.757349,0.000237,7]
[394178944,1763356237548,-1000.0,0.00023807,2]
[394178945,1763356237558,-500.0,0.00023899,2]
[394178946,1763356237569,-151.0,0.000239,7]
[394178947,1763356237579,-151.0,0.000239,7]
[394178948,1763356237588,-151.0,0.000239,7]
[394178949,1763356237599,-478.25,0.00023926,2]
[394178950,1763356237939,-478.25,0.00023926,2]
[394178951,1763356237949,-486.44,0.00023926,2]
[394178952,1763356237959,-478.25,0.00023926,2]
[394178953,1763356237968,-478.25,0.00023926,2]
[394178954,1763356237978,-478.25,0.00023926,2]
[394178955,1763356237987,-478.25,0.00023926,2]
[394178956,1763356237996,-478.25,0.00023926,2]
[394178957,1763356238006,-478.25,0.00023926,2]
[394178958,1763356238015,-478.25,0.00023926,2]
[394178959,1763356238025,-956.33,0.00023926,2]
[394178960,1763356238034,-478.25,0.00023926,2]
[394178961,1763356238044,-478.25,0.00023926,2]
[394178962,1763356238054,-1296.10619,0.00024,2]
[394178963,1763356238064,-331.0,0.00024164,7]
[394178964,1763356238073,-166.0,0.00024164,7]
[394178965,1763356238082,-317.0,0.00024164,7]
[394178966,1763356238092,-1148.83,0.00024225,30]
[394178967,1763356238101,-506.18,0.00024273,2]
[394178968,1763356238111,-308.4,0.00024435,2]
[394178969,1763356238120,-278.98000005,0.00024499,2]
[394178970,1763356238130,-500.0,0.00024499,2]
[394178971,1763356238140,-500.0,0.00024499,2]
[394178972,1763356238150,-500.0,0.00024499,2]
[394178973,1763356238164,-500.0,0.00024499,2]
[394178974,1763356238174,-500.0,0.00024499,2]
[394178975,1763356238184,-500.0,0.00024499,2]
[394178976,1763356238194,-151.0,0.000245,7]
[394178977,1763356238205,-158.813171,0.000245,7]
[394178978,1763356238215,-455.905246,0.00024597,2]
[394178979,1763356238224,-500.0,0.00024599,2]
[394178980,1763356238234,-500.0,0.00024599,2]
[394178981,1763356238244,-500.0,0.00024599,2]
[394178982,1763356238254,-500.0,0.00024599,2]
[394178983,1763356238264,-500.0,0.00024599,2]
[394178984,1763356238274,-500.0,0.00024599,2]
[394178985,1763356238284,-151.307565,0.000246,7]
[394178986,1763356238294,-332.60791905,0.00024634,2]
[394178987,1763356238304,-156.0,0.00024658,2]
[394178988,1763356238314,-156.64231811,0.00024658,2]
[394178989,1763356238324,-151.0,0.00024658,7]
[394178990,1763356238334,-203.186816,0.00024658,7]
[394178991,1763356238348,-151.0,0.00024658,7]
[394178992,1763356238358,-151.625174,0.00024658,7]
[394178993,1763356238369,-151.0,0.00024658,7]
[394178994,1763356238379,-151.0,0.00024658,7]
[394178995,1763356238389,-151.0,0.00024658,7]
[394178996,1763356238399,-151.0,0.00024658,7]
[394178997,1763356238409,-151.0,0.00024658,7]
[394178998,1763356238418,-151.0,0.00024658,7]
[394178999,1763356238428,-151.0,0.00024658,7]
[394179000,1763356238438,-151.0,0.00024658,7]
[394179001,1763356238448,-151.0,0.00024658,7]
[394179002,1763356238458,-151.0,0.00024658,7]
[394179003,1763356238468,-154.283588,0.00024658,7]
[394179004,1763356238478,-151.0,0.00024658,7]
[394179005,1763356238488,-151.0,0.00024658,7]
[394179006,1763356238499,-153.03274,0.00024658,7]
[394179007,1763356238509,-151.0,0.00024658,7]
[394179008,1763356238519,-151.0,0.00024658,7]
[394179009,1763356238528,-151.0,0.00024658,7]
[394179010,1763356238542,-151.0,0.00024658,7]
[394179011,1763356238552,-151.0,0.00024658,7]
[394179012,1763356238562,-155.219858,0.00024658,7]
[394179013,1763356238572,-160.797925,0.00024658,7]
[394179014,1763356238582,-151.912994,0.00024658,7]
[394179015,1763356238592,-151.0,0.00024658,7]
[394179016,1763356238602,-151.0,0.00024658,7]
[394179017,1763356238612,-153.61754,0.00024658,7]
[394179018,1763356238624,-164.543261,0.00024658,7]
[394179020,1763356238636,-151.0,0.00024658,7]
[394179022,1763356238646,-151.0,0.00024658,7]
[394179024,1763356238655,-158.275466,0.00024658,7]
[394179026,1763356238667,-1000.0,0.00024658,2]
[394179028,1763356238677,-203.488208,0.00024658,7]
[394179030,1763356238687,-151.0,0.00024658,7]
[394179032,1763356238697,-151.0,0.00024658,7]
[394179034,1763356238708,-186.960486,0.00024658,7]
[394179036,1763356238718,-186.960486,0.00024658,7]
[394179039,1763356238731,-151.0,0.00024658,7]
[394179041,1763356238741,-186.960486,0.00024658,7]
[394179043,1763356238751,-186.960486,0.00024658,7]
[394179045,1763356238760,-151.0,0.00024658,7]
[394179047,1763356238770,-151.0,0.00024658,7]
[394179049,1763356238781,-156.641585,0.00024658,7]
[394179051,1763356238791,-151.0,0.00024658,7]
[394179053,1763356238801,-155.005522,0.00024658,7]
[394179055,1763356238812,-154.637783,0.00024658,7]
[394179057,1763356238821,-155.005522,0.00024658,7]
[394179059,1763356238831,-151.0,0.00024658,7]
[394179061,1763356238840,-155.005522,0.00024658,7]
[394179063,1763356238851,-155.005522,0.00024658,7]
[394179066,1763356238860,-274.789827,0.00024658,7]
[394179068,1763356238870,-151.0,0.00024658,7]
[394179070,1763356238880,-151.0,0.00024658,7]
[394179072,1763356238889,-206.421062,0.00024658,7]
[394179074,1763356238900,-151.0,0.00024658,7]
[394179076,1763356238911,-263.729101,0.00024658,7]
[394179078,1763356238924,-263.729101,0.00024658,7]
[394179080,1763356238935,-151.0,0.00024658,7]
[394179082,1763356238946,-263.729101,0.00024658,7]
[394179084,1763356238956,-263.729101,0.00024658,7]
[394179086,1763356238966,-151.0,0.00024658,7]
[394179088,1763356238976,-151.0,0.00024658,7]
[394179090,1763356238986,-151.0,0.00024658,7]
[394179093,1763356238996,-151.0,0.00024658,7]
[394179095,1763356239006,-151.0,0.00024658,7]
[394179097,1763356239016,-151.0,0.00024658,7]
[394179099,1763356239026,-151.0,0.00024658,7]
[394179101,1763356239036,-151.0,0.00024658,7]
[394179103,1763356239045,-284.479485,0.00024658,7]
[394179105,1763356239055,-151.0,0.00024658,7]
[394179107,1763356239065,-151.0,0.00024658,7]
[394179109,1763356239075,-151.0,0.00024658,7]
[394179111,1763356239085,-151.0,0.00024658,7]
[394179113,1763356239094,-162.566226,0.00024658,7]
[394179115,1763356239105,-151.0,0.00024658,7]
[394179117,1763356239117,-151.0,0.00024658,7]
[394179119,1763356239127,-156.993471,0.00024658,7]
[394179121,1763356239137,-151.0,0.00024658,7]
[394179123,1763356239146,-151.0,0.00024658,7]
[394179125,1763356239156,-151.0,0.00024658,7]
[394179128,1763356239166,-151.0,0.00024658,7]
[394179130,1763356239176,-156.042943,0.00024658,7]
[394179132,1763356239185,-151.0,0.00024658,7]
[394179134,1763356239195,-153.001168,0.00024658,7]
[394179136,1763356239204,-151.0,0.00024658,7]
[394179138,1763356239214,-151.0,0.00024658,7]
[394179140,1763356239223,-151.0,0.00024658,7]
[394179142,1763356239233,-238.81562,0.00024658,7]
[394179144,1763356239243,-151.0,0.00024658,7]
[394179146,1763356239254,-151.0,0.00024658,7]
[394179148,1763356239263,-151.0,0.00024658,7]
[394179150,1763356239274,-269.203814,0.00024658,7]
[394179152,1763356239283,-151.0,0.00024658,7]
[394179154,1763356239293,-269.203814,0.00024658,7]
[394179156,1763356239303,-269.203814,0.00024658,7]
[394179158,1763356239313,-269.203814,0.00024658,7]
[394179160,1763356239322,-151.0,0.00024658,7]
[394179162,1763356239332,-151.0,0.00024658,7]
[394179164,1763356239342,-151.0,0.00024658,7]
[394179166,1763356239352,-151.0,0.00024658,7]
[394179168,1763356239361,-151.0,0.00024658,7]
[394179171,1763356239371,-151.0,0.00024658,7]
[394179174,1763356239380,-151.0,0.00024658,7]
[394179177,1763356239389,-151.0,0.00024658,7]
[394179179,1763356239399,-151.0,0.00024658,7]
[394179181,1763356239408,-151.0,0.00024658,7]
[394179183,1763356239417,-151.0,0.00024658,7]
[394179185,1763356239426,-492.420343,0.00024658,7]
[394179187,1763356239435,-492.420343,0.00024658,7]
[394179189,1763356239445,-492.420343,0.00024658,7]
[394179191,1763356239455,-492.420343,0.00024658,7]
[394179193,1763356239464,-151.0,0.00024658,7]
[394179195,1763356239473,-151.0,0.00024658,7]
[394179197,1763356239483,-151.0,0.00024658,7]
[394179200,1763356239503,-151.0,0.00024658,7]
[394179201,1763356239514,-151.0,0.00024658,7]
[394179202,1763356239524,-151.0,0.00024658,7]
[394179203,1763356239534,-151.0,0.00024658,7]
[394179204,1763356239544,-151.0,0.00024658,7]
[394179205,1763356239555,-151.0,0.00024658,7]
[394179206,1763356239565,-151.0,0.00024658,7]
[394179208,1763356239578,-152.37025,0.00024658,7]
[394179210,1763356239589,-151.0,0.00024658,7]
[394179212,1763356239598,-151.0,0.00024658,7]
[394179214,1763356239609,-151.0,0.00024658,7]
[394179216,1763356239620,-151.0,0.00024658,7]
[394179218,1763356239633,-151.0,0.00024658,7]
[394179220,1763356239643,-151.0,0.00024658,7]
[394179222,1763356239654,-151.0,0.00024658,7]
[394179224,1763356239664,-151.0,0.00024658,7]
[394179226,1763356239675,-151.0,0.00024658,7]
[394179228,1763356239684,-156.809181,0.00024658,7]
[394179230,1763356239695,-571.695912,0.00024658,7]
[394179232,1763356239706,-571.695912,0.00024658,7]
[394179234,1763356239716,-151.0,0.00024658,7]
[394179236,1763356239726,-464.518819,0.00024658,7]
[394179238,1763356239735,-571.695912,0.00024658,7]
[394179240,1763356239745,-464.518819,0.00024658,7]
[394179242,1763356239755,-571.695912,0.00024658,7]
[394179244,1763356239764,-151.0,0.00024658,7]
[394179246,1763356239774,-464.518819,0.00024658,7]
[394179248,1763356239784,-151.0,0.00024658,7]
[394179250,1763356239794,-464.518819,0.00024658,7]
[394179252,1763356239803,-151.0,0.00024658,7]
[394179255,1763356239813,-151.0,0.00024658,7]
[394179257,1763356239823,-152.43528,0.00024658,7]
[394179259,1763356239833,-151.0,0.00024658,7]
[394179261,1763356239843,-164.519972,0.00024658,7]
[394179263,1763356239857,-151.0,0.00024658,7]
[394179265,1763356239867,-151.0,0.00024658,7]
[394179267,1763356239877,-151.0,0.00024658,7]
[394179269,1763356239887,-168.952082,0.00024658,7]
[394179272,1763356239898,-151.0,0.00024658,7]
[394179274,1763356239909,-168.952082,0.00024658,7]
[394179276,1763356239918,-151.0,0.00024658,7]
[394179278,1763356239928,-168.952082,0.00024658,7]
[394179280,1763356239938,-168.952082,0.00024658,7]
[394179282,1763356239948,-198.86218,0.00024658,7]
[394179284,1763356239958,-156.182179,0.00024658,7]
[394179286,1763356239968,-152.671954,0.00024658,7]
[394179290,1763356239979,-198.86218,0.00024658,7]
[394179293,1763356239989,-151.0,0.00024658,7]
[394179296,1763356239999,-153.325826,0.00024658,7]
[394179298,1763356240008,-198.86218,0.00024658,7]
[394179300,1763356240018,-151.0,0.00024658,7]
[394179302,1763356240028,-151.0,0.00024658,7]
[394179306,1763356240060,-198.86218,0.00024658,7]
[394179309,1763356240077,-151.0,0.00024658,7]
[394179312,1763356240090,-151.0,0.00024658,7]
[394179314,1763356240102,-151.0,0.00024658,7]
[394179317,1763356240117,-151.0,0.00024658,7]
[394179319,1763356240131,-151.0,0.00024658,7]
[394179322,1763356240144,-151.0,0.00024658,7]
[394179324,1763356240160,-238.159812,0.00024658,7]
[394179327,1763356240175,-238.159812,0.00024658,7]
[394179330,1763356240189,-151.0,0.00024658,7]
[394179332,1763356240200,-238.159812,0.00024658,7]
[394179334,1763356240211,-151.0,0.00024658,7]
[394179337,1763356240226,-238.159812,0.00024658,7]
[394179339,1763356240241,-151.0,0.00024658,7]
[394179342,1763356240255,-726.7,0.00024658,2]
[394179344,1763356240270,-151.0,0.00024658,7]
[394179347,1763356240285,-151.0,0.00024658,7]
[394179350,1763356240298,-151.0,0.00024658,7]
[394179352,1763356240313,-151.0,0.00024658,7]
[394179355,1763356240326,-151.0,0.00024658,7]
[394179357,1763356240339,-166.480869,0.00024658,7]
[394179360,1763356240354,-151.0,0.00024658,7]
[394179362,1763356240367,-151.0,0.00024658,7]
[394179365,1763356240381,-151.0,0.00024658,7]
[394179368,1763356240401,-151.0,0.00024658,7]
[394179371,1763356240418,-151.0,0.00024658,7]
[394179373,1763356240433,-237.818383,0.00024658,7]
[394179375,1763356240445,-151.0,0.00024658,7]
[394179377,1763356240455,-343.375011,0.00024658,7]
[394179380,1763356240467,-151.0,0.00024658,7]
[394179383,1763356240482,-151.0,0.00024658,7]
[394179385,1763356240496,-166.082594,0.00024658,7]
[394179387,1763356240507,-151.0,0.00024658,7]
[394179389,1763356240517,-151.0,0.00024658,7]
[394179392,1763356240528,-343.375011,0.00024658,7]
[394179395,1763356240547,-151.0,0.00024658,7]
[394179397,1763356240561,-151.0,0.00024658,7]
[394179399,1763356240572,-151.0,0.00024658,7]
[394179402,1763356240583,-343.375011,0.00024658,7]
[394179404,1763356240596,-196.429139,0.00024658,7]
[394179406,1763356240608,-167.661426,0.00024658,7]
[394179409,1763356240622,-152.318517,0.00024658,7]
[394179411,1763356240637,-343.375011,0.00024658,7]
[394179413,1763356240651,-209.197426,0.00024658,7]
[394179416,1763356240667,-151.0,0.00024658,7]
[394179418,1763356240682,-151.0,0.00024658,7]
[394179421,1763356240696,-151.0,0.00024658,7]
[394179423,1763356240713,-209.197426,0.00024658,7]
[394179425,1763356240727,-151.0,0.00024658,7]
[394179428,1763356240740,-152.321937,0.00024658,7]
[394179430,1763356240753,-156.667299,0.00024658,7]
[394179433,1763356240766,-209.197426,0.00024658,7]
[394179435,1763356240780,-151.0,0.00024658,7]
[394179438,1763356240795,-209.197426,0.00024658,7]
[394179440,1763356240808,-151.0,0.00024658,7]
[394179443,1763356240821,-151.0,0.00024658,7]
[394179445,1763356240834,-151.0,0.00024658,7]
[394179448,1763356240846,-151.0,0.00024658,7]
[394179450,1763356240859,-151.0,0.00024658,7]
[394179452,1763356240872,-151.0,0.00024658,7]
[394179455,1763356240884,-151.0,0.00024658,7]
[394179457,1763356240897,-151.0,0.00024658,7]
[394179460,1763356240915,-151.0,0.00024658,7]
[394179462,1763356240928,-151.0,0.00024658,7]
[394179465,1763356240940,-151.0,0.00024658,7]
[394179467,1763356240952,-223.306756,0.00024658,7]
[394179469,1763356240964,-223.306756,0.00024658,7]
[394179472,1763356240976,-151.0,0.00024658,7]
[394179474,1763356240989,-223.306756,0.00024658,7]
[394179476,1763356241001,-151.328028,0.00024658,7]
[394179478,1763356241013,-223.306756,0.00024658,7]
[394179480,1763356241024,-264.222113,0.00024658,7]
[394179481,1763356241037,-264.222113,0.00024658,7]
[394179482,1763356241049,-264.222113,0.00024658,7]
[394179483,1763356241061,-731.024753,0.00024658,7]
[394179484,1763356241074,-264.222113,0.00024658,7]
[394179486,1763356241085,-731.024753,0.00024658,7]
[394179488,1763356241097,-151.8525,0.00024658,7]
[394179490,1763356241110,-731.024753,0.00024658,7]
[394179492,1763356241122,-731.024753,0.00024658,7]
[394179494,1763356241133,-151.0,0.00024658,7]
[394179497,1763356241145,-151.0,0.00024658,7]
[394179499,1763356241157,-152.094301,0.00024658,7]